fUST/lending_fUST_20250326
["ID","MTS","AMOUNT","RATE_DAILY","PERIOD"]
[356655638,1742923636223,-500.0,0.00012081,2]
[356655639,1742923636245,-732.61,0.00012081,2]
[356655640,1742923636266,-500.0,0.00012081,2]
[356655641,1742923636289,-1132.95,0.00012081,2]
[356655642,1742923636310,-500.0,0.00012081,2]
[356655643,1742923636331,-1072.94,0.00012081,2]
[356655644,1742923636353,-500.0,0.00012081,2]
[356655645,1742923636375,-500.0,0.00012081,2]
[356655646,1742923636397,-500.0,0.00012081,2]
[356655647,1742923636419,-500.0,0.00012081,2]
[356655648,1742923636440,-500.0,0.00012081,2]
[356655649,1742923636462,-500.0,0.00012081,2]
[356655650,1742923636483,-8880.29,0.00012081,2]
[356655651,1742923636632,-500.0,0.00012081,2]
[356655652,1742923636655,-464.99895481,0.00012081,2]
[356655653,1742923636676,-500.0,0.00012081,2]
[356655654,1742923636697,-500.0,0.00012081,2]
[356655655,1742923636719,-500.0,0.00012081,2]
[356655656,1742923636740,-500.0,0.00012081,2]
[356655657,1742923636760,-500.0,0.00012081,2]
[356655658,1742923636782,-500.0,0.00012081,2]
[356655659,1742923636803,-2623.35,0.00012081,2]
[356655660,1742923636824,-500.0,0.00012081,2]
[356655661,1742923636844,-500.0,0.00012081,2]
[356655662,1742923636865,-2500.65,0.00012081,2]
[356655663,1742923636885,-500.0,0.00012081,2]
[356655664,1742923636905,-632.6,0.00012081,2]
[356655665,1742923636926,-2356.47,0.00012081,2]
[356655666,1742923636946,-500.0,0.00012081,2]
[356655667,1742923636966,-802.35,0.00012081,2]
[356655668,1742923636987,-555.26,0.00012081,2]
[356655669,1742923637008,-627.48,0.00012081,2]
[356655670,1742923637029,-1195.95,0.00012081,2]
[356655671,1742923637054,-500.0,0.00012081,2]
[356655672,1742923637075,-500.0,0.00012081,2]
[356655673,1742923637097,-2386.0,0.00012081,2]
[356655674,1742923637119,-500.0,0.00012081,2]
[356655675,1742923637141,-500.0,0.00012081,2]
[356655676,1742923637162,-500.0,0.00012081,2]
[356655677,1742923637183,-500.0,0.00012081,2]
[356655678,1742923637205,-500.0,0.00012081,2]
[356655679,1742923637226,-992.36,0.00012081,2]
[356655680,1742923637248,-500.0,0.00012081,2]
[356655681,1742923637269,-500.0,0.00012081,2]
[356655682,1742923637289,-500.0,0.00012082,2]
[356655683,1742923637310,-500.0,0.00012082,2]
[356655684,1742923637334,-253.28,0.00012082,2]
[356655685,1742923637356,-500.0,0.00012082,2]
[356655686,1742923637377,-500.0,0.00012082,2]
[356655687,1742923637397,-611.82,0.00012082,2]
[356655688,1742923637418,-500.0,0.00012082,2]
[356655689,1742923637438,-500.0,0.00012082,2]
[356655690,1742923637459,-500.0,0.00012082,2]
[356655691,1742923637479,-500.0,0.00012082,2]
[356655692,1742923637501,-500.0,0.00012082,2]
[356655693,1742923637522,-505.09210939,0.00012082,2]
[356655694,1742923637543,-500.0,0.00012082,2]
[356655695,1742923637564,-500.0,0.00012082,2]
[356655696,1742923637587,-500.0,0.00012082,2]
[356655697,1742923637607,-500.0,0.00012082,2]
[356655698,1742923637628,-518.78333877,0.00012082,2]
[356655699,1742923637649,-516.44553099,0.00012082,2]
[356655700,1742923637670,-500.0,0.00012082,2]
[356655701,1742923637692,-616.21,0.00012082,2]
[356655702,1742923637713,-500.0,0.00012082,2]
[356655703,1742923637734,-374.6096284,0.00012082,2]
[356655704,1742923637755,-500.0,0.00012082,2]
[356655705,1742923637776,-500.0,0.00012082,2]
[356655706,1742923637797,-585.76166267,0.00012082,2]
[356655707,1742923637818,-500.0,0.00012082,2]
[356655708,1742923637838,-619.6966662,0.00012082,2]
[356655709,1742923637859,-500.0,0.00012082,2]
[356655710,1742923637879,-500.0,0.00012082,2]
[356655711,1742923637898,-500.0,0.00012082,2]
[356655712,1742923637919,-500.0,0.00012082,2]
[356655713,1742923637939,-500.0,0.00012082,2]
[356655714,1742923637961,-519.10559844,0.00012082,2]
[356655715,1742923637981,-500.0,0.00012082,2]
[356655716,1742923638001,-500.0,0.00012082,2]
[356655717,1742923638022,-447.06039329,0.00012082,2]
[356655718,1742923638046,-500.0,0.00012082,2]
[356655719,1742923638070,-500.0,0.00012082,2]
[356655720,1742923638093,-513.89795743,0.00012082,2]
[356655721,1742923638116,-500.0,0.00012082,2]
[356655722,1742923638137,-500.0,0.00012082,2]
[356655723,1742923638158,-318.51,0.00012082,2]
[356655724,1742923638179,-500.0,0.00012082,2]
[356655725,1742923638200,-500.0,0.00012082,2]
[356655726,1742923638221,-500.0,0.00012082,2]
[356655727,1742923638242,-500.0,0.00012082,2]
[356655728,1742923638264,-1010.9,0.00012082,2]
[356655729,1742923638285,-500.0,0.00012082,2]
[356655730,1742923638307,-500.0,0.00012082,2]
[356655731,1742923638329,-500.0,0.00012082,2]
[356655732,1742923638351,-500.0,0.00012082,2]
[356655733,1742923638372,-571.01,0.00012082,2]
[356655734,1742923638394,-500.0,0.00012082,2]
[356655735,1742923638416,-500.0,0.00012082,2]
[356655736,1742923638438,-500.0,0.00012082,2]
[356655737,1742923638464,-1701.11,0.00012082,2]
[356655738,1742923638485,-500.0,0.00012082,2]
[356655739,1742923638508,-174.03403489,0.00012082,2]
[356655740,1742923638529,-1590.47,0.00012082,2]
[356655741,1742923638550,-500.0,0.00012082,2]
[356655742,1742923638573,-500.0,0.00012082,2]
[356655743,1742923638595,-500.0,0.00012082,2]
[356655744,1742923638615,-500.0,0.00012082,2]
[356655745,1742923638637,-357.11570495,0.00012082,2]
[356655746,1742923638660,-1061.07,0.00012082,2]
[356655747,1742923638685,-500.0,0.00012082,2]
[356655748,1742923638712,-500.0,0.00012082,2]
[356655749,1742923638735,-500.0,0.00012082,2]
[356655750,1742923638757,-500.0,0.00012082,2]
[356655751,1742923638779,-1771.74,0.00012082,2]
[356655752,1742923638800,-500.0,0.00012082,2]
[356655753,1742923638823,-500.0,0.00012082,2]
[356655754,1742923638850,-8368.37,0.00012082,2]
[356655755,1742923638872,-500.0,0.00012082,2]
[356655756,1742923638895,-3187.9,0.00012082,2]
[356655757,1742923638916,-571.71464849,0.00012082,2]
[356655758,1742923638937,-500.0,0.00012082,2]
[356655759,1742923638959,-500.0,0.00012082,2]
[356655760,1742923638980,-500.0,0.00012082,2]
[356655761,1742923639006,-500.0,0.00012082,2]
[356655762,1742923639027,-803.09,0.00012082,2]
[356655763,1742923639051,-500.0,0.00012082,2]
[356655764,1742923639074,-2154.75,0.00012082,2]
[356655765,1742923639098,-513.65,0.00012082,2]
[356655766,1742923639238,-500.0,0.00012082,2]
[356655767,1742923639260,-500.0,0.00012082,2]
[356655768,1742923639282,-500.0,0.00012082,2]
[356655769,1742923639305,-500.0,0.00012082,2]
[356655770,1742923639327,-500.0,0.00012082,2]
[356655771,1742923639349,-500.0,0.00012082,2]
[356655772,1742923639370,-500.0,0.00012082,2]
[356655773,1742923639392,-500.0,0.00012082,2]
[356655774,1742923639413,-500.0,0.00012082,2]
[356655775,1742923639435,-797.92,0.00012082,2]
[356655776,1742923639461,-500.0,0.00012082,2]
[356655777,1742923639485,-2793.93,0.00012082,2]
[356655778,1742923639506,-500.0,0.00012082,2]
[356655779,1742923639527,-6297.47,0.00012082,2]
[356655780,1742923639548,-500.0,0.00012082,2]
[356655781,1742923639568,-500.0,0.00012082,2]
[356655782,1742923639588,-500.0,0.00012082,2]
[356655783,1742923639609,-100854.99,0.00012082,2]
[356655784,1742923639629,-500.0,0.00012082,2]
[356655785,1742923639651,-3176.16,0.00012082,2]
[356655786,1742923639671,-500.0,0.00012082,2]
[356655787,1742923639691,-500.0,0.00012082,2]
[356655788,1742923639712,-642.72,0.00012082,2]
[356655789,1742923639733,-1458.93,0.00012082,2]
[356655790,1742923639753,-500.0,0.00012082,2]
[356655791,1742923639774,-4232.11,0.00012082,2]
[356655792,1742923639794,-500.0,0.00012082,2]
[356655793,1742923639815,-654.76,0.00012082,2]
[356655794,1742923639835,-500.0,0.00012082,2]
[356655795,1742923639856,-1317.42,0.00012082,2]
[356655796,1742923639877,-500.0,0.00012082,2]
[356655797,1742923639897,-500.0,0.00012082,2]
[356655798,1742923639918,-500.0,0.00012082,2]
[356655799,1742923639939,-1124.3,0.00012082,2]
[356655800,1742923639959,-500.0,0.00012082,2]
[356655801,1742923639979,-500.0,0.00012082,2]
[356655802,1742923640000,-500.0,0.00012082,2]
[356655803,1742923640021,-500.0,0.00012082,2]
[356655804,1742923640045,-500.0,0.00012082,2]
[356655805,1742923640066,-522.14655985,0.00012082,2]
[356655806,1742923640087,-500.0,0.00012082,2]
[356655807,1742923640108,-500.0,0.00012082,2]
[356655808,1742923640130,-500.0,0.00012082,2]
[356655809,1742923640151,-5736.21,0.00012082,2]
[356655810,1742923640171,-500.0,0.00012082,2]
[356655811,1742923640192,-500.0,0.00012082,2]
[356655812,1742923640214,-512.14257488,0.00012082,2]
[356655813,1742923640234,-151.0,0.00012084,2]
[356655814,1742923640255,-164.743796,0.00012084,2]
[356655815,1742923640276,-621.32,0.00012084,2]
[356655816,1742923640297,-500.0,0.00012084,2]
[356655817,1742923640318,-500.0,0.00012084,2]
[356655818,1742923640340,-500.0,0.00012084,2]
[356655819,1742923640362,-785.99,0.00012084,2]
[356655820,1742923640384,-500.0,0.00012084,2]
[356655821,1742923640406,-500.0,0.00012084,2]
[356655822,1742923640428,-500.0,0.00012084,2]
[356655823,1742923640451,-500.0,0.00012084,2]
[356655824,1742923640474,-500.0,0.00012084,2]
[356655825,1742923640499,-1514.21,0.00012084,2]
[356655826,1742923640522,-579.21,0.00012084,2]
[356655827,1742923640545,-500.0,0.00012084,2]
[356655828,1742923640567,-561.35,0.00012084,2]
[356655829,1742923640592,-500.0,0.00012084,2]
[356655830,1742923640616,-1578.06,0.00012084,2]
[356655831,1742923640639,-1797.08,0.00012084,2]
[356655832,1742923640662,-1379.74,0.00012084,2]
[356655833,1742923640684,-500.0,0.00012084,2]
[356655834,1742923640708,-500.0,0.00012084,2]
[356655835,1742923640729,-500.0,0.00012084,2]
[356655836,1742923640755,-665.21,0.00012084,2]
[356655837,1742923640776,-500.0,0.00012084,2]
[356655838,1742923640797,-1269.47,0.00012084,2]
[356655839,1742923640819,-612.25,0.00012084,2]
[356655840,1742923640840,-500.0,0.00012084,2]
[356655841,1742923640861,-500.0,0.00012084,2]
[356655842,1742923640883,-677.92,0.00012084,2]
[356655843,1742923640905,-500.0,0.00012084,2]
[356655844,1742923640925,-762.66,0.00012084,2]
[356655845,1742923640947,-500.0,0.00012084,2]
[356655846,1742923640969,-500.0,0.00012084,2]
[356655847,1742923640990,-1113.3,0.00012084,2]
[356655848,1742923641012,-500.0,0.00012084,2]
[356655849,1742923641034,-500.0,0.00012084,2]
[356655850,1742923641059,-858.1,0.00012084,2]
[356655851,1742923641081,-225.58850301,0.00012084,2]
[356655852,1742923641103,-2683.08,0.00012084,2]
[356655853,1742923641127,-539.15,0.00012084,2]
[356655854,1742923641150,-500.0,0.00012084,2]
[356655855,1742923641173,-500.0,0.00012084,2]
[356655856,1742923641196,-155.71104972,0.00012084,2]
[356655857,1742923641220,-500.0,0.00012084,2]
[356655858,1742923641242,-500.0,0.00012084,2]
[356655859,1742923641263,-151.0,0.00012085,2]
[356655860,1742923641285,-151.0,0.00012085,2]
[356655861,1742923641306,-151.0,0.00012085,2]
[356655862,1742923641327,-500.0,0.00012086,2]
[356655863,1742923641348,-502.88011407,0.00012086,2]
[356655864,1742923641368,-505.61978857,0.00012086,2]
[356655865,1742923641389,-500.0,0.00012086,2]
[356655866,1742923641410,-500.0,0.00012086,2]
[356655867,1742923641432,-500.0,0.00012086,2]
[356655868,1742923641454,-500.0,0.00012086,2]
[356655869,1742923641474,-500.0,0.00012086,2]
[356655870,1742923641495,-500.0,0.00012086,2]
[356655871,1742923641515,-500.0,0.00012086,2]
[356655872,1742923641535,-500.0,0.00012086,2]
[356655873,1742923641556,-500.0,0.00012086,2]
[356655874,1742923641577,-500.0,0.00012086,2]
[356655875,1742923641598,-500.0,0.00012086,2]
[356655876,1742923641731,-500.0,0.00012086,2]
[356655877,1742923641753,-500.0,0.00012086,2]
[356655878,1742923641774,-500.0,0.00012086,2]
[356655879,1742923641797,-500.0,0.00012086,2]
[356655880,1742923641820,-500.0,0.00012086,2]
[356655881,1742923641842,-500.0,0.00012086,2]
[356655882,1742923641864,-500.0,0.00012086,2]
[356655883,1742923641886,-500.0,0.00012086,2]
[356655884,1742923641907,-503.00074845,0.00012086,2]
[356655885,1742923641929,-579.66,0.00012086,2]
[356655886,1742923641952,-279.7870302,0.00012086,2]
[356655887,1742923641974,-500.0,0.00012086,2]
[356655888,1742923641995,-520.45492891,0.00012086,2]
[356655889,1742923642017,-353.04500881,0.00012086,2]
[356655890,1742923642040,-505.58858015,0.00012086,2]
[356655891,1742923642064,-500.0,0.00012086,2]
[356655892,1742923642087,-500.0,0.00012086,2]
[356655893,1742923642107,-500.0,0.00012086,2]
[356655894,1742923642131,-500.0,0.00012086,2]
[356655895,1742923642153,-151.0,0.00012086,2]
[356655896,1742923642175,-151.0,0.00012086,2]
[356655897,1742923642198,-500.0,0.00012086,2]
[356655898,1742923642219,-815.37,0.00012086,2]
[356655899,1742923642241,-228.54,0.00012086,2]
[356655900,1742923642263,-500.0,0.00012086,2]
[356655901,1742923642285,-500.0,0.00012086,2]
[356655902,1742923642306,-507.4958345,0.00012086,2]
[356655903,1742923642327,-500.0,0.00012086,2]
[356655904,1742923642349,-548.35,0.00012086,2]
[356655905,1742923642371,-500.0,0.00012086,2]
[356655906,1742923642392,-500.0,0.00012086,2]
[356655907,1742923642415,-500.0,0.00012086,2]
[356655908,1742923642436,-23765.0,0.000121,2]
[356655909,1742923642458,-250.0,0.000121,2]
[356655910,1742923642479,-465.00020531,0.00012217,2]
[356655911,1742923642500,-151.0,0.0001235,2]
[356655912,1742923642522,-1000.0,0.0001235,2]
[356655913,1742923642545,-500.0,0.00012354,2]
[356655914,1742923642567,-8049.06720448,0.00012354,2]
[356655915,1742923643057,-1078.94279552,0.00012354,2]
[356655916,1742923643081,-2871.29,0.00012354,2]
[356655917,1742923643103,-842.83,0.00012354,2]
[356655918,1742923643127,-890.44,0.00012354,2]
[356655919,1742923643149,-500.0,0.00012354,2]
[356655920,1742923643172,-7882.01,0.00012354,2]
[356655921,1742923643195,-1341.22,0.00012354,2]
[356655922,1742923643217,-500.0,0.00012354,2]
[356655923,1742923643239,-1079.31,0.00012354,2]
[356655924,1742923643262,-4976.09,0.00012354,2]
[356655925,1742923643284,-500.0,0.00012354,2]
[356655926,1742923643307,-500.0,0.00012354,2]
[356655927,1742923643328,-500.0,0.00012355,2]
[356655928,1742923643351,-500.0,0.00012355,2]
[356655929,1742923643373,-500.0,0.00012355,2]
[356655930,1742923643394,-500.0,0.00012355,2]
[356655931,1742923643415,-450.53,0.00012355,2]
[356655932,1742923643436,-500.0,0.00012355,2]
[356655933,1742923643461,-320.33780977,0.00012355,2]
[356655934,1742923643482,-641.67,0.00012355,2]
[356655935,1742923643504,-500.0,0.00012355,2]
[356655936,1742923643525,-500.0,0.00012355,2]
[356655937,1742923643547,-500.0,0.00012355,2]
[356655938,1742923643568,-709.81,0.00012355,2]
[356655939,1742923643590,-500.0,0.00012355,2]
[356655940,1742923643611,-500.0,0.00012355,2]
[356655941,1742923643631,-500.0,0.00012355,2]
[356655942,1742923643652,-1008.23,0.00012355,2]
[356655943,1742923643673,-500.0,0.00012355,2]
[356655944,1742923643697,-949.01,0.00012355,2]
[356655945,1742923643718,-434.86,0.00012355,2]
[356655946,1742923643739,-580.56,0.00012355,2]
[356655947,1742923643760,-500.0,0.00012355,2]
[356655948,1742923643782,-1454.83,0.00012355,2]
[356655949,1742923643804,-3061.86,0.00012355,2]
[356655950,1742923643825,-4666.49,0.00012355,2]
[356655951,1742923643847,-500.0,0.00012355,2]
[356655952,1742923643868,-1237.98,0.00012355,2]
[356655953,1742923643889,-500.0,0.00012355,2]
[356655954,1742923643910,-1486.36,0.00012355,2]
[356655955,1742923643931,-500.0,0.00012355,2]
[356655956,1742923643954,-500.0,0.00012355,2]
[356655957,1742923643976,-500.0,0.00012355,2]
[356655958,1742923643997,-732.61,0.00012355,2]
[356655959,1742923644134,-500.0,0.00012355,2]
[356655960,1742923644156,-1132.95,0.00012355,2]
[356655961,1742923644178,-1072.94,0.00012355,2]
[356655962,1742923644203,-500.0,0.00012355,2]
[356655963,1742923644227,-500.0,0.00012355,2]
[356655964,1742923644251,-500.0,0.00012355,2]
[356655965,1742923644274,-8880.29,0.00012355,2]
[356655966,1742923644297,-500.0,0.00012355,2]
[356655967,1742923644321,-500.0,0.00012355,2]
[356655968,1742923644344,-500.0,0.00012355,2]
[356655969,1742923644366,-2623.35,0.00012355,2]
[356655970,1742923644387,-2500.65,0.00012355,2]
[356655971,1742923644409,-500.0,0.00012355,2]
[356655972,1742923644430,-632.6,0.00012355,2]
[356655973,1742923644455,-2356.47,0.00012355,2]
[356655974,1742923644476,-802.35,0.00012355,2]
[356655975,1742923644496,-555.26,0.00012355,2]
[356655976,1742923644518,-627.48,0.00012355,2]
[356655977,1742923644539,-1195.95,0.00012355,2]
[356655978,1742923644559,-500.0,0.00012355,2]
[356655979,1742923644579,-500.0,0.00012355,2]
[356655980,1742923644599,-2386.0,0.00012355,2]
[356655981,1742923644619,-500.0,0.00012355,2]
[356655982,1742923644640,-500.0,0.00012355,2]
[356655983,1742923644661,-500.0,0.00012355,2]
[356655984,1742923644680,-500.0,0.00012355,2]
[356655985,1742923644703,-500.0,0.00012355,2]
[356655986,1742923644724,-992.36,0.00012355,2]
[356655987,1742923644745,-500.0,0.00012355,2]
[356655988,1742923644766,-500.0,0.00012355,2]
[356655989,1742923644787,-500.0,0.00012356,2]
[356655990,1742923644807,-500.0,0.00012356,2]
[356655991,1742923644826,-500.0,0.00012356,2]
[356655992,1742923644847,-500.0,0.00012356,2]
[356655993,1742923644867,-500.0,0.00012356,2]
[356655994,1742923644889,-500.0,0.00012356,2]
[356655995,1742923644915,-500.0,0.00012356,2]
[356655996,1742923644937,-458.73,0.00012356,2]
[356655997,1742923644959,-400.06,0.00012356,2]
[356655998,1742923644981,-500.0,0.00012356,2]
[356655999,1742923645001,-500.0,0.00012356,2]
[356656000,1742923645022,-616.21,0.00012356,2]
[356656001,1742923645049,-500.0,0.00012356,2]
[356656002,1742923645071,-500.0,0.00012356,2]
[356656003,1742923645093,-500.0,0.00012356,2]
[356656004,1742923645114,-500.0,0.00012356,2]
[356656005,1742923645139,-500.0,0.00012356,2]
[356656006,1742923645161,-500.0,0.00012356,2]
[356656007,1742923645183,-169.06,0.00012356,2]
[356656008,1742923645205,-500.0,0.00012356,2]
[356656009,1742923645227,-500.0,0.00012356,2]
[356656010,1742923645261,-500.0,0.00012356,2]
[356656011,1742923645291,-500.0,0.00012356,2]
[356656012,1742923645322,-500.0,0.00012356,2]
[356656013,1742923645355,-500.0,0.00012356,2]
[356656014,1742923645387,-500.0,0.00012356,2]
[356656015,1742923645416,-500.0,0.00012356,2]
[356656016,1742923645443,-518.88,0.00012356,2]
[356656017,1742923645473,-571.01,0.00012356,2]
[356656018,1742923645498,-500.0,0.00012356,2]
[356656019,1742923645528,-500.0,0.00012356,2]
[356656020,1742923645557,-486.11366797,0.00012356,2]
[356656021,1742923645590,-1701.11,0.00012356,2]
[356656022,1742923645620,-1590.47,0.00012356,2]
[356656023,1742923645646,-254.76,0.00012356,2]
[356656024,1742923645678,-1061.07,0.00012356,2]
[356656025,1742923645710,-297.21666997,0.00012356,2]
[356656026,1742923645742,-500.0,0.00012356,2]
[356656027,1742923645768,-420.95,0.00012356,2]
[356656028,1742923645796,-500.0,0.00012356,2]
[356656029,1742923645825,-1771.74,0.00012356,2]
[356656030,1742923645853,-500.0,0.00012356,2]
[356656031,1742923645880,-500.0,0.00012356,2]
[356656032,1742923645908,-8368.37,0.00012356,2]
[356656033,1742923645935,-3187.9,0.00012356,2]
[356656034,1742923645964,-500.0,0.00012356,2]
[356656035,1742923645993,-803.09,0.00012356,2]
[356656036,1742923646021,-2154.75,0.00012356,2]
[356656037,1742923646049,-339.32090277,0.00012356,2]
[356656038,1742923646730,-174.32909723,0.00012356,2]
[356656039,1742923646751,-500.0,0.00012356,2]
[356656040,1742923646772,-523.58,0.00012356,2]
[356656041,1742923646792,-500.0,0.00012356,2]
[356656042,1742923646813,-500.0,0.00012356,2]
[356656043,1742923646833,-500.0,0.00012356,2]
[356656044,1742923646855,-500.0,0.00012356,2]
[356656045,1742923646876,-500.0,0.00012356,2]
[356656046,1742923646898,-500.0,0.00012356,2]
[356656047,1742923646919,-797.92,0.00012356,2]
[356656048,1742923646939,-500.0,0.00012356,2]
[356656049,1742923646960,-500.0,0.00012356,2]
[356656050,1742923646982,-2793.93,0.00012356,2]
[356656051,1742923647002,-500.0,0.00012356,2]
[356656052,1742923647023,-6297.47,0.00012356,2]
[356656053,1742923647045,-500.0,0.00012356,2]
[356656054,1742923647067,-500.0,0.00012356,2]
[356656055,1742923647089,-500.0,0.00012356,2]
[356656056,1742923647110,-4098.65180577,0.00012356,2]
[356656057,1742923652305,-150.0,0.00012081,2]
[356656120,1742923832316,-300.0,0.00012079,2]
[356656121,1742923832326,-869.92,0.0001208,2]
[356656122,1742923832337,-1333.6,0.0001208,2]
[356656123,1742923832348,-4277.62,0.0001208,2]
[356656124,1742923832358,-1134.82,0.0001208,2]
[356656125,1742923832368,-2806.71,0.0001208,2]
[356656126,1742923832377,-500.0,0.0001208,2]
[356656127,1742923832386,-1362.5,0.0001208,2]
[356656128,1742923832395,-500.0,0.0001208,2]
[356656129,1742923832404,-500.0,0.0001208,2]
[356656130,1742923832414,-671.56,0.0001208,2]
[356656131,1742923832423,-500.0,0.0001208,2]
[356656132,1742923832432,-983.53,0.0001208,2]
[356656133,1742923832441,-772.59,0.0001208,2]
[356656134,1742923832450,-8367.34,0.0001208,2]
[356656135,1742923832459,-629.78773812,0.0001208,2]
[356656136,1742923832469,-8140.27,0.0001208,2]
[356656137,1742923832478,-1038.54,0.0001208,2]
[356656139,1742923832488,-2632.01,0.0001208,2]
[356656141,1742923832498,-500.0,0.0001208,2]
[356656143,1742923832507,-500.0,0.0001208,2]
[356656145,1742923832517,-2404.73,0.0001208,2]
[356656147,1742923832527,-500.0,0.0001208,2]
[356656149,1742923832536,-7225.17,0.0001208,2]
[356656151,1742923832545,-1875.48,0.0001208,2]
[356656153,1742923832554,-2160.09,0.0001208,2]
[356656155,1742923832564,-816.23,0.0001208,2]
[356656157,1742923832573,-989.37,0.0001208,2]
[356656159,1742923832582,-1096.29,0.0001208,2]
[356656161,1742923832592,-500.0,0.0001208,2]
[356656163,1742923832602,-575.19,0.0001208,2]
[356656165,1742923832611,-500.0,0.0001208,2]
[356656167,1742923832620,-500.0,0.0001208,2]
[356656169,1742923832630,-2187.17,0.0001208,2]
[356656171,1742923832639,-1229.45,0.0001208,2]
[356656173,1742923832649,-500.0,0.0001208,2]
[356656175,1742923832658,-485.14635089,0.0001208,2]
[356656177,1742923832668,-1409.35,0.00012081,2]
[356656179,1742923832678,-1457.93,0.00012081,2]
[356656181,1742923832687,-972.64,0.00012081,2]
[356656183,1742923832697,-1624.1,0.00012081,2]
[356656185,1742923832706,-7671.01,0.00012081,2]
[356656187,1742923832715,-500.0,0.00012081,2]
[356656189,1742923832724,-500.0,0.00012081,2]
[356656191,1742923832733,-2922.25,0.00012081,2]
[356656193,1742923832743,-500.0,0.00012081,2]
[356656195,1742923832752,-1975.19,0.00012081,2]
[356656196,1742923832761,-500.0,0.00012081,2]
[356656197,1742923832770,-500.0,0.00012081,2]
[356656198,1742923832779,-500.0,0.00012081,2]
[356656200,1742923832788,-500.0,0.00012081,2]
[356656202,1742923832797,-731.42,0.00012081,2]
[356656204,1742923832806,-500.0,0.00012081,2]
[356656206,1742923832815,-2561.1,0.00012081,2]
[356656208,1742923832824,-5772.68,0.00012081,2]
[356656209,1742923832833,-500.0,0.00012081,2]
[356656211,1742923832843,-500.0,0.00012081,2]
[356656212,1742923832851,-66284.46603955,0.00012081,2]
[356656237,1742923838083,-500.0,0.0001208,2]
[356656238,1742923838093,-500.0,0.0001208,2]
[356656239,1742923838104,-500.0,0.0001208,2]
[356656240,1742923838115,-30197.46396045,0.00012081,2]
[356656241,1742923838124,-555.08,0.00012081,2]
[356656242,1742923838134,-500.0,0.00012081,2]
[356656243,1742923838145,-1451.11,0.00012081,2]
[356656244,1742923838154,-3043.82,0.00012081,2]
[356656245,1742923838163,-500.0,0.00012081,2]
[356656247,1742923838172,-500.0,0.00012081,2]
[356656249,1742923838183,-3063.29052145,0.00012081,2]
[356656250,1742923838195,-992.47947855,0.00012081,2]
[356656251,1742923838204,-537.96,0.00012081,2]
[356656252,1742923838213,-1398.14,0.00012081,2]
[356656253,1742923838223,-1512.31,0.00012081,2]
[356656254,1742923838232,-1262.53,0.00012081,2]
[356656255,1742923838242,-1077.46,0.00012081,2]
[356656256,1742923838251,-1722.2,0.00012081,2]
[356656257,1742923838261,-548.92808396,0.00012081,2]
[356656258,1742923838270,-500.0,0.00012082,2]
[356656259,1742923838279,-506.65062881,0.00012082,2]
[356656260,1742923838289,-500.0,0.00012082,2]